Workbook

Sheet Master
C1: EMPLOYEE PERSONAL DETAIL
B2: D;k vkius lefiZr osru fy;k gS \ | E2: YES | F2: ;fn gk¡ rks ekg dks lysDV djsaA | I2: OCT | S2: YES | T2: JAN | U2: 8 | V2: GPF | W2: Jaipur (U.A.) | Y2: Regular Pay | AA2: 2019-03-01
B3: vki fdl vk;q oxZ dh Js.kh esa vkrs gS \ | E3: Under 60 | F3: D;k vkidks cksul feyk gS \ %& | I3: YES | J3: 6774 | L3: =UPPER(IF(Master!H9="","",Master!H9)) -> SR TEACHER | S3: NO | T3: =UPPER(IF(Master!D10="","",Master!D10)) -> G.S.S.S. INDERWARA | U3: 9 | V3: NPS | W3: Ajmer | Y3: Fix Pay | AA3: 2019-04-01
C4: foadykax HkÙkk %& | E4: 600 | F4: vkidks osru fey jgk gS %& | I4: Regular Pay | K4: =IF(AND(Master!I5=Master!V3),"",Master!D13) -> 112233 | Q4: =IF(AND(Master!I5=Master!V2),"",Master!D14) ->  | T4: MAR | U4: 10 | W4: Bikaner | Y4: =IF(AND(Master!D15=""),"",Master!D15) -> 51046657419 | AA4: 2019-05-01
B5: 7th PAY HRA izfr'kr esa %& | E5: 8 | F5: % GPF / NPS :- | I5: GPF | T5: APR | U5: 12 | W5: Jodhpur | AA5: 2019-06-01
B6: CCA yxrk gSa rks sellect Yes / No %& | E6: YES | F6: CCA ykxw gks rks CITY lysDV djsa %& | I6: Jodhpur | T6: MAY | U6: 16 | W6: Kota | AA6: 2019-07-01
D7: First Unlock Cell Entry Fill Up Then Click On Generate Button | T7: JUN | U7: 20 | AA7: 2019-08-01
B8: Office Name :- | D8: Government Sr. Secondary School INDERWARA , Rani (Pali) | K8: ije~ iwT; xw:nso Jh Jh 1008 oklwnso th egkjkt | T8: JUL | X8: 1000 | AA8: 2019-09-01
B9: Employee Name :- | D9: Heeralal jat | F9: Designation :- | H9: Sr Teacher | T9: AUG | X9: 620 | AA9: 2019-10-01
C10: Posting Place :- | D10: G.S.S.S. Inderwara | F10: DDO Name :- | H10: Mishrilal | T10: SEP | AA10: 2019-11-01
B11: Personal Employee ID :- | D11: RJPAxxxxxxxx74 | F11: UID AADHAR No. :- | K11: Micro Software Present By | T11: OCT | AA11: 2019-12-01
B12: PAN No. :- | D12: ADTxxxxxx2 | F12: TAN NO. :- | H12: ADIxxx1L | K12: HEERA LAL JAAT | T12: NOV | AA12: 2020-01-01
B13: GPF No. :- | D13: 112233 | F13: SI No. :- | H13: 123456 | K13: Sr. Teacher | T13: DEC | AA13: 2020-02-01
B14: PRAN No. :- | D14: 3216544444 | F14: CPF & NPS No. :- | J14: V./P. - Chandawal Nagar, Sojat (Pali)
B15: Bank A/C No. :- | D15: 51046657419 | F15: Salary Head :-
B17: BASIC On 01 March 2019 F | D17: 45100
B18: Tax Calculate From Month :- | D18: 2019-03-01 | F18: To Month :- | H18: 2020-02-01
B20: Wash All. | C20: Handi. All. | D20: CCA | E20: other | F20: SI | G20: GPF | H20: L.I.C. | I20: S.I. LOAN | J20: GPF LOAN | K20: Other | L20: Other
F21: 4000 | G21: 3575 | H21: 2178
E23: Income Tax Deduction By Salary
B24: March | C24: April | D24: May | E24: June | F24: July | G24: August | H24: September | I24: October | J24: November | K24: December | L24: January | M24: February
B25: 200 | C25: 500 | D25: 1000 | E25: 500 | F25: 500 | G25: 1000 | H25: 2000 | I25: 2000 | J25: 4000 | K25: 1400 | L25: 1400 | M25: 100
C28: First Unlock Cell Entry Fill Up Then Click On Generate Button
F29: Use Tab Button For Unlock Cell

Sheet GA 55 (hidden)
A3: Employee Name :- | D3: =UPPER(IF(Master!D9="","",Master!D9)) -> HEERALAL JAT | I3: Designation :- | L3: =UPPER(IF(Master!H9="","",Master!H9)) -> SR TEACHER | P3: Posting Place :- | T3: =UPPER(IF(Master!D10="","",Master!D10)) -> G.S.S.S. INDERWARA | Z3: osru Mªk ekufp=
A4: PAN No. :- | C4: =UPPER(IF(Master!D12="","",Master!D12)) -> ADTXXXXXX2 | F4: SI No. | G4: =IF(AND(Master!H13=""),"",Master!H13) -> 123456 | J4: GPF | K4: =IF(AND(Master!I5=Master!V3),"",Master!D13) -> 112233 | N4: PRAN No. :- | Q4: =IF(AND(Master!I5=Master!V2),"",Master!D14) ->  | V4: Bank A/C. | Y4: =IF(AND(Master!D15=""),"",Master!D15) -> 51046657419
A5: Total Allowances | M5: Deductions | Y5: NET PAY | Z5: TV.NO. | AA5: Enc. DATE
A6: S.R. | B6: Month | C6: Basic With Grade Pay | D6: DA | E6: HRA | F6: =Master!B20 -> Wash All. | G6: =Master!C20 -> Handi. All. | H6: Bonus | I6: =Master!D20 -> CCA | J6: N.P.S. By Govt. | K6: =Master!E20 -> other | L6: Total | M6: SI | N6: GPF | O6: RPMF | P6: N.P.S. By SELF | Q6: =Master!H20 -> L.I.C. | R6: =Master!I20 -> S.I. LOAN | S6: =Master!J20 -> GPF LOAN | T6: =Master!K20 -> Other | U6: Income Tax | V6: G.I. + S. Tax | W6: =Master!K20 -> Other | X6: Total Ded.
A7: 1 | B7: =IF(AND(AT7=""),"",AP7) -> 2019-03-01 | C7: =IF(AND(B7=""),"",AT7) -> 45100 | D7: =IF(AND(Master!$I$4=Master!$Y$3),"",IF(AND(C7=""),"",ROUND(12%*C7,0))) -> 5412 | E7: =IF(AND(Master!$I$4=Master!$Y$3),"",IF(AND(C7=""),"",ROUND(Master!$E$5%*C7,0))) -> 3608 | F7: =IF(AND(C7=""),"",IF(AND(Master!$B$21=""),"",Master!$B$21)) ->  | G7: =IF(AND(C7=""),"",IF(AND(Master!$C$21=""),"",Master!$C$21)) ->  | I7: =IF(AND(C7=""),"",IF(AND(Master!$D$21=""),"",Master!$D$21)) ->  | J7: =IF(AND(Master!I$5=Master!V$2),"",IF(AND(Master!I$4=Master!Y$3),ROUND((C7)*0.1,0),IF(AND(Master!I$5=Master!V$3),ROUND((C7+D7)*0.1,0),""))) ->  | K7: =IF(AND(C7=""),"",IF(AND(Master!$E$21=""),"",Master!$E$21)) ->  | L7: =IF(AND(B7=""),"",SUM(C7,D7,E7,F7,G7,I7,K7)) -> 54120 | M7: =IF(AND(C7=""),"",IF(AND(Master!$I$4=Master!$Y$3),"",Master!$F$21)) -> 4000 | N7: =IF(AND(C7=""),"",IF(AND(Master!$I$4=Master!$Y$3),"",IF(AND(Master!$I$5=Master!$V$3),"",Master!$G$21))) -> 3575 | O7: =IF(AND(B7=""),"",IF(AND(Master!$I$4=Master!$Y$3),"",IF(AND(Master!$I$5=Master!$V$3),"",IF(C7<18001,228,IF(C7<33501,379,IF(C7<54001,568,755)))))) -> 568 | P7: =IF(AND(Master!I$5=Master!V$2),"",IF(AND(Master!I$4=Master!Y$3),ROUND((C7)*0.1,0),IF(AND(Master!I$5=Master!V$3),ROUND((C7+D7)*0.1,0),""))) ->  | Q7: =IF(AND(C7=""),"",IF(AND(Master!$I$4=Master!$Y$3),"",Master!$H$21)) -> 2178 | R7: =IF(AND(C7=""),"",IF(AND(Master!$I$4=Master!$Y$3),"",Master!$H$21)) -> 2178 | S7: =IF(AND(C7=""),"",IF(AND(Master!$I$4=Master!$Y$3),"",Master!$I$21)) -> 0 | T7: =IF(AND(C7=""),"",IF(AND(Master!$I$4=Master!$Y$3),"",Master!$K$21)) -> 0 | U7: =IF(AND(C7=""),"",IF(AND(Master!$I$4=Master!$Y$3),"",Master!B25)) -> 200 | W7: =IF(AND(C7=""),"",IF(AND(Master!$I$4=Master!$Y$3),"",Master!$L$21)) -> 0 | X7: =IF(AND(B7=""),"",SUM(M7:W7)) -> 12699 | Y7: =IF(AND(B7=""),"",IF(AND(L7="",X7=""),"",SUM(L7-X7))) -> 41421 | AO7: MAR | AP7: 2019-03-01 | AQ7: 3 | AS7: =$AR$10 -> 45100 | AT7: =IF(AND(AP7<$AR$11),"",IF(AND(AP7>$AR$12),"",AS7)) -> 45100 | AU7: =ROUND(12%*AS7,0) -> 5412
A8: 2 | B8: =IF(AND(AT8=""),"",AP8) -> 2019-04-01 | C8: =IF(AND(B8=""),"",AT8) -> 45100 | D8: =IF(AND(Master!$I$4=Master!$Y$3),"",IF(AND(C8=""),"",ROUND(12%*C8,0))) -> 5412 | E8: =IF(AND(Master!$I$4=Master!$Y$3),"",IF(AND(C8=""),"",ROUND(Master!$E$5%*C8,0))) -> 3608 | F8: =IF(AND(C8=""),"",IF(AND(Master!$B$21=""),"",Master!$B$21)) ->  | G8: =IF(AND(C8=""),"",IF(AND(Master!$C$21=""),"",Master!$C$21)) ->  | I8: =IF(AND(C8=""),"",IF(AND(Master!$D$21=""),"",Master!$D$21)) ->  | J8: =IF(AND(Master!I$5=Master!V$2),"",IF(AND(Master!I$4=Master!Y$3),ROUND((C8)*0.1,0),IF(AND(Master!I$5=Master!V$3),ROUND((C8+D8)*0.1,0),""))) ->  | K8: =IF(AND(C8=""),"",IF(AND(Master!$E$21=""),"",Master!$E$21)) ->  | L8: =IF(AND(B8=""),"",SUM(C8,D8,E8,F8,G8,I8,K8)) -> 54120 | M8: =IF(AND(C8=""),"",IF(AND(Master!$I$4=Master!$Y$3),"",Master!$F$21)) -> 4000 | N8: =IF(AND(C8=""),"",IF(AND(Master!$I$4=Master!$Y$3),"",IF(AND(Master!$I$5=Master!$V$3),"",Master!$G$21))) -> 3575 | O8: =IF(AND(B8=""),"",IF(AND(Master!$I$4=Master!$Y$3),"",IF(AND(Master!$I$5=Master!$V$3),"",IF(C8<18001,242,IF(C8<33501,402,IF(C8<54001,602,800)))))) -> 602 | P8: =IF(AND(Master!I$5=Master!V$2),"",IF(AND(Master!I$4=Master!Y$3),ROUND((C8)*0.1,0),IF(AND(Master!I$5=Master!V$3),ROUND((C8+D8)*0.1,0),""))) ->  | Q8: =IF(AND(C8=""),"",IF(AND(Master!$I$4=Master!$Y$3),"",Master!$H$21)) -> 2178 | R8: =IF(AND(C8=""),"",IF(AND(Master!$I$4=Master!$Y$3),"",Master!$H$21)) -> 2178 | S8: =IF(AND(C8=""),"",IF(AND(Master!$I$4=Master!$Y$3),"",Master!$I$21)) -> 0 | T8: =IF(AND(C8=""),"",IF(AND(Master!$I$4=Master!$Y$3),"",Master!$K$21)) -> 0 | U8: =IF(AND(C8=""),"",IF(AND(Master!$I$4=Master!$Y$3),"",Master!C25)) -> 500 | V8: 220 | W8: =IF(AND(C8=""),"",IF(AND(Master!$I$4=Master!$Y$3),"",Master!$L$21)) -> 0 | X8: =IF(AND(B8=""),"",SUM(M8:W8)) -> 13253 | Y8: =IF(AND(B8=""),"",IF(AND(L8="",X8=""),"",SUM(L8-X8))) -> 40867 | AO8: APR | AP8: 2019-04-01 | AQ8: 4 | AS8: =$AR$10 -> 45100 | AT8: =IF(AND(AP8<$AR$11),"",IF(AND(AP8>$AR$12),"",AS8)) -> 45100 | AU8: =ROUND(12%*AS8,0) -> 5412
A9: 3 | B9: 2019-05-01 | C9: 45100 | D9: =IF(AND(Master!$I$4=Master!$Y$3),"",IF(AND(C9=""),"",ROUND(12%*C9,0))) -> 5412 | E9: =IF(AND(Master!$I$4=Master!$Y$3),"",IF(AND(C9=""),"",ROUND(Master!$E$5%*C9,0))) -> 3608 | F9: =IF(AND(C9=""),"",IF(AND(Master!$B$21=""),"",Master!$B$21)) ->  | G9: =IF(AND(C9=""),"",IF(AND(Master!$C$21=""),"",Master!$C$21)) ->  | I9: =IF(AND(C9=""),"",IF(AND(Master!$D$21=""),"",Master!$D$21)) ->  | J9: =IF(AND(Master!I$5=Master!V$2),"",IF(AND(Master!I$4=Master!Y$3),ROUND((C9)*0.1,0),IF(AND(Master!I$5=Master!V$3),ROUND((C9+D9)*0.1,0),""))) ->  | K9: =IF(AND(C9=""),"",IF(AND(Master!$E$21=""),"",Master!$E$21)) ->  | L9: 54120 | M9: =IF(AND(C9=""),"",IF(AND(Master!$I$4=Master!$Y$3),"",Master!$F$21)) -> 4000 | N9: =IF(AND(C9=""),"",IF(AND(Master!$I$4=Master!$Y$3),"",IF(AND(Master!$I$5=Master!$V$3),"",Master!$G$21))) -> 3575 | O9: =IF(AND(B9=""),"",IF(AND(Master!$I$4=Master!$Y$3),"",IF(AND(Master!$I$5=Master!$V$3),"",IF(C9<18001,242,IF(C9<33501,402,IF(C9<54001,602,800)))))) -> 602 | P9: =IF(AND(Master!I$5=Master!V$2),"",IF(AND(Master!I$4=Master!Y$3),ROUND((C9)*0.1,0),IF(AND(Master!I$5=Master!V$3),ROUND((C9+D9)*0.1,0),""))) ->  | Q9: =IF(AND(C9=""),"",IF(AND(Master!$I$4=Master!$Y$3),"",Master!$H$21)) -> 2178 | R9: =IF(AND(C9=""),"",IF(AND(Master!$I$4=Master!$Y$3),"",Master!$H$21)) -> 2178 | S9: =IF(AND(C9=""),"",IF(AND(Master!$I$4=Master!$Y$3),"",Master!$I$21)) -> 0 | T9: =IF(AND(C9=""),"",IF(AND(Master!$I$4=Master!$Y$3),"",Master!$K$21)) -> 0 | U9: =IF(AND(C9=""),"",IF(AND(Master!$I$4=Master!$Y$3),"",Master!D25)) -> 1000 | W9: =IF(AND(C9=""),"",IF(AND(Master!$I$4=Master!$Y$3),"",Master!$L$21)) -> 0 | X9: 13533 | Y9: 40587 | AO9: MAY | AP9: 2019-05-01 | AQ9: 5 | AS9: 45100 | AT9: 45100 | AU9: 5412
A10: 4 | B10: 2019-06-01 | C10: 45100 | D10: =IF(AND(Master!$I$4=Master!$Y$3),"",IF(AND(C10=""),"",ROUND(12%*C10,0))) -> 5412 | E10: =IF(AND(Master!$I$4=Master!$Y$3),"",IF(AND(C10=""),"",ROUND(Master!$E$5%*C10,0))) -> 3608 | F10: =IF(AND(C10=""),"",IF(AND(Master!$B$21=""),"",Master!$B$21)) ->  | G10: =IF(AND(C10=""),"",IF(AND(Master!$C$21=""),"",Master!$C$21)) ->  | I10: =IF(AND(C10=""),"",IF(AND(Master!$D$21=""),"",Master!$D$21)) ->  | J10: =IF(AND(Master!I$5=Master!V$2),"",IF(AND(Master!I$4=Master!Y$3),ROUND((C10)*0.1,0),IF(AND(Master!I$5=Master!V$3),ROUND((C10+D10)*0.1,0),""))) ->  | K10: =IF(AND(C10=""),"",IF(AND(Master!$E$21=""),"",Master!$E$21)) ->  | L10: 54120 | M10: =IF(AND(C10=""),"",IF(AND(Master!$I$4=Master!$Y$3),"",Master!$F$21)) -> 4000 | N10: =IF(AND(C10=""),"",IF(AND(Master!$I$4=Master!$Y$3),"",IF(AND(Master!$I$5=Master!$V$3),"",Master!$G$21))) -> 3575 | O10: =IF(AND(B10=""),"",IF(AND(Master!$I$4=Master!$Y$3),"",IF(AND(Master!$I$5=Master!$V$3),"",IF(C10<18001,242,IF(C10<33501,402,IF(C10<54001,602,800)))))) -> 602 | P10: =IF(AND(Master!I$5=Master!V$2),"",IF(AND(Master!I$4=Master!Y$3),ROUND((C10)*0.1,0),IF(AND(Master!I$5=Master!V$3),ROUND((C10+D10)*0.1,0),""))) ->  | Q10: =IF(AND(C10=""),"",IF(AND(Master!$I$4=Master!$Y$3),"",Master!$H$21)) -> 2178 | R10: =IF(AND(C10=""),"",IF(AND(Master!$I$4=Master!$Y$3),"",Master!$H$21)) -> 2178 | S10: =IF(AND(C10=""),"",IF(AND(Master!$I$4=Master!$Y$3),"",Master!$I$21)) -> 0 | T10: =IF(AND(C10=""),"",IF(AND(Master!$I$4=Master!$Y$3),"",Master!$K$21)) -> 0 | U10: =IF(AND(C10=""),"",IF(AND(Master!$I$4=Master!$Y$3),"",Master!E25)) -> 500 | W10: =IF(AND(C10=""),"",IF(AND(Master!$I$4=Master!$Y$3),"",Master!$L$21)) -> 0 | X10: 13033 | Y10: 41087 | AO10: JUN | AP10: 2019-06-01 | AQ10: 6 | AR10: =IF(AND(Master!D17=""),"",Master!D17) -> 45100 | AS10: 45100 | AT10: 45100 | AU10: 5412
A11: 5 | B11: 2019-07-01 | C11: 46500 | D11: =IF(AND(Master!$I$4=Master!$Y$3),"",IF(AND(C11=""),"",ROUND(12%*C11,0))) -> 5580 | E11: =IF(AND(Master!$I$4=Master!$Y$3),"",IF(AND(C11=""),"",ROUND(Master!$E$5%*C11,0))) -> 3720 | F11: =IF(AND(C11=""),"",IF(AND(Master!$B$21=""),"",Master!$B$21)) ->  | G11: =IF(AND(C11=""),"",IF(AND(Master!$C$21=""),"",Master!$C$21)) ->  | I11: =IF(AND(C11=""),"",IF(AND(Master!$D$21=""),"",Master!$D$21)) ->  | J11: =IF(AND(Master!I$5=Master!V$2),"",IF(AND(Master!I$4=Master!Y$3),ROUND((C11)*0.1,0),IF(AND(Master!I$5=Master!V$3),ROUND((C11+D11)*0.1,0),""))) ->  | K11: =IF(AND(C11=""),"",IF(AND(Master!$E$21=""),"",Master!$E$21)) ->  | L11: 55800 | M11: =IF(AND(C11=""),"",IF(AND(Master!$I$4=Master!$Y$3),"",Master!$F$21)) -> 4000 | N11: =IF(AND(C11=""),"",IF(AND(Master!$I$4=Master!$Y$3),"",IF(AND(Master!$I$5=Master!$V$3),"",Master!$G$21))) -> 3575 | O11: =IF(AND(B11=""),"",IF(AND(Master!$I$4=Master!$Y$3),"",IF(AND(Master!$I$5=Master!$V$3),"",IF(C11<18001,242,IF(C11<33501,402,IF(C11<54001,602,800)))))) -> 602 | P11: =IF(AND(Master!I$5=Master!V$2),"",IF(AND(Master!I$4=Master!Y$3),ROUND((C11)*0.1,0),IF(AND(Master!I$5=Master!V$3),ROUND((C11+D11)*0.1,0),""))) ->  | Q11: =IF(AND(C11=""),"",IF(AND(Master!$I$4=Master!$Y$3),"",Master!$H$21)) -> 2178 | R11: =IF(AND(C11=""),"",IF(AND(Master!$I$4=Master!$Y$3),"",Master!$H$21)) -> 2178 | S11: =IF(AND(C11=""),"",IF(AND(Master!$I$4=Master!$Y$3),"",Master!$I$21)) -> 0 | T11: =IF(AND(C11=""),"",IF(AND(Master!$I$4=Master!$Y$3),"",Master!$K$21)) -> 0 | U11: =IF(AND(C11=""),"",IF(AND(Master!$I$4=Master!$Y$3),"",Master!F25)) -> 500 | W11: =IF(AND(C11=""),"",IF(AND(Master!$I$4=Master!$Y$3),"",Master!$L$21)) -> 0 | X11: 13033 | Y11: 42767 | AO11: JUL | AP11: 2019-07-01 | AQ11: 7 | AR11: =IF(AND(Master!D18=""),"",Master!D18) -> 2019-03-01 | AS11: =IF(AND(AR10=""),0,MROUND(AR10*1.03,100)) -> 46500 | AT11: 46500 | AU11: =ROUND(12%*AS11,0) -> 5580
A12: 6 | B12: 2019-08-01 | C12: 46500 | D12: =IF(AND(Master!$I$4=Master!$Y$3),"",IF(AND(C12=""),"",ROUND(12%*C12,0))) -> 5580 | E12: =IF(AND(Master!$I$4=Master!$Y$3),"",IF(AND(C12=""),"",ROUND(Master!$E$5%*C12,0))) -> 3720 | F12: =IF(AND(C12=""),"",IF(AND(Master!$B$21=""),"",Master!$B$21)) ->  | G12: =IF(AND(C12=""),"",IF(AND(Master!$C$21=""),"",Master!$C$21)) ->  | I12: =IF(AND(C12=""),"",IF(AND(Master!$D$21=""),"",Master!$D$21)) ->  | J12: =IF(AND(Master!I$5=Master!V$2),"",IF(AND(Master!I$4=Master!Y$3),ROUND((C12)*0.1,0),IF(AND(Master!I$5=Master!V$3),ROUND((C12+D12)*0.1,0),""))) ->  | K12: =IF(AND(C12=""),"",IF(AND(Master!$E$21=""),"",Master!$E$21)) ->  | L12: 55800 | M12: =IF(AND(C12=""),"",IF(AND(Master!$I$4=Master!$Y$3),"",Master!$F$21)) -> 4000 | N12: =IF(AND(C12=""),"",IF(AND(Master!$I$4=Master!$Y$3),"",IF(AND(Master!$I$5=Master!$V$3),"",Master!$G$21))) -> 3575 | O12: =IF(AND(B12=""),"",IF(AND(Master!$I$4=Master!$Y$3),"",IF(AND(Master!$I$5=Master!$V$3),"",IF(C12<18001,242,IF(C12<33501,402,IF(C12<54001,602,800)))))) -> 602 | P12: =IF(AND(Master!I$5=Master!V$2),"",IF(AND(Master!I$4=Master!Y$3),ROUND((C12)*0.1,0),IF(AND(Master!I$5=Master!V$3),ROUND((C12+D12)*0.1,0),""))) ->  | Q12: =IF(AND(C12=""),"",IF(AND(Master!$I$4=Master!$Y$3),"",Master!$H$21)) -> 2178 | R12: =IF(AND(C12=""),"",IF(AND(Master!$I$4=Master!$Y$3),"",Master!$H$21)) -> 2178 | S12: =IF(AND(C12=""),"",IF(AND(Master!$I$4=Master!$Y$3),"",Master!$I$21)) -> 0 | T12: =IF(AND(C12=""),"",IF(AND(Master!$I$4=Master!$Y$3),"",Master!$K$21)) -> 0 | U12: =IF(AND(C12=""),"",IF(AND(Master!$I$4=Master!$Y$3),"",Master!G25)) -> 1000 | W12: =IF(AND(C12=""),"",IF(AND(Master!$I$4=Master!$Y$3),"",Master!$L$21)) -> 0 | X12: 13533 | Y12: 42267 | AO12: AUG | AP12: 2019-08-01 | AQ12: 8 | AR12: =IF(AND(Master!H18=""),"",Master!H18) -> 2020-02-01 | AS12: =$AR$13 -> 46500 | AT12: 46500 | AU12: 5580
A13: 7 | B13: 2019-09-01 | C13: 46500 | D13: =IF(AND(Master!$I$4=Master!$Y$3),"",IF(AND(C13=""),"",ROUND(12%*C13,0))) -> 5580 | E13: =IF(AND(Master!$I$4=Master!$Y$3),"",IF(AND(C13=""),"",ROUND(Master!$E$5%*C13,0))) -> 3720 | F13: =IF(AND(C13=""),"",IF(AND(Master!$B$21=""),"",Master!$B$21)) ->  | G13: =IF(AND(C13=""),"",IF(AND(Master!$C$21=""),"",Master!$C$21)) ->  | I13: =IF(AND(C13=""),"",IF(AND(Master!$D$21=""),"",Master!$D$21)) ->  | J13: =IF(AND(Master!I$5=Master!V$2),"",IF(AND(Master!I$4=Master!Y$3),ROUND((C13)*0.1,0),IF(AND(Master!I$5=Master!V$3),ROUND((C13+D13)*0.1,0),""))) ->  | K13: =IF(AND(C13=""),"",IF(AND(Master!$E$21=""),"",Master!$E$21)) ->  | L13: 55800 | M13: =IF(AND(C13=""),"",IF(AND(Master!$I$4=Master!$Y$3),"",Master!$F$21)) -> 4000 | N13: =IF(AND(C13=""),"",IF(AND(Master!$I$4=Master!$Y$3),"",IF(AND(Master!$I$5=Master!$V$3),"",Master!$G$21))) -> 3575 | O13: =IF(AND(B13=""),"",IF(AND(Master!$I$4=Master!$Y$3),"",IF(AND(Master!$I$5=Master!$V$3),"",IF(C13<18001,242,IF(C13<33501,402,IF(C13<54001,602,800)))))) -> 602 | P13: =IF(AND(Master!I$5=Master!V$2),"",IF(AND(Master!I$4=Master!Y$3),ROUND((C13)*0.1,0),IF(AND(Master!I$5=Master!V$3),ROUND((C13+D13)*0.1,0),""))) ->  | Q13: =IF(AND(C13=""),"",IF(AND(Master!$I$4=Master!$Y$3),"",Master!$H$21)) -> 2178 | R13: =IF(AND(C13=""),"",IF(AND(Master!$I$4=Master!$Y$3),"",Master!$H$21)) -> 2178 | S13: =IF(AND(C13=""),"",IF(AND(Master!$I$4=Master!$Y$3),"",Master!$I$21)) -> 0 | T13: =IF(AND(C13=""),"",IF(AND(Master!$I$4=Master!$Y$3),"",Master!$K$21)) -> 0 | U13: =IF(AND(C13=""),"",IF(AND(Master!$I$4=Master!$Y$3),"",Master!H25)) -> 2000 | W13: =IF(AND(C13=""),"",IF(AND(Master!$I$4=Master!$Y$3),"",Master!$L$21)) -> 0 | X13: 14533 | Y13: 41267 | AO13: SEP | AP13: 2019-09-01 | AQ13: 9 | AR13: =IF(AND(AR10=""),"",MROUND(AR10*1.03,100)) -> 46500 | AS13: =$AR$13 -> 46500 | AT13: 46500 | AU13: 5580
A14: 8 | B14: 2019-10-01 | C14: 46500 | D14: =IF(AND(Master!$I$4=Master!$Y$3),"",IF(AND(C14=""),"",ROUND(12%*C14,0))) -> 5580 | E14: =IF(AND(Master!$I$4=Master!$Y$3),"",IF(AND(C14=""),"",ROUND(Master!$E$5%*C14,0))) -> 3720 | F14: =IF(AND(C14=""),"",IF(AND(Master!$B$21=""),"",Master!$B$21)) ->  | G14: =IF(AND(C14=""),"",IF(AND(Master!$C$21=""),"",Master!$C$21)) ->  | I14: =IF(AND(C14=""),"",IF(AND(Master!$D$21=""),"",Master!$D$21)) ->  | J14: =IF(AND(Master!I$5=Master!V$2),"",IF(AND(Master!I$4=Master!Y$3),ROUND((C14)*0.1,0),IF(AND(Master!I$5=Master!V$3),ROUND((C14+D14)*0.1,0),""))) ->  | K14: =IF(AND(C14=""),"",IF(AND(Master!$E$21=""),"",Master!$E$21)) ->  | L14: 55800 | M14: =IF(AND(C14=""),"",IF(AND(Master!$I$4=Master!$Y$3),"",Master!$F$21)) -> 4000 | N14: =IF(AND(C14=""),"",IF(AND(Master!$I$4=Master!$Y$3),"",IF(AND(Master!$I$5=Master!$V$3),"",Master!$G$21))) -> 3575 | O14: =IF(AND(B14=""),"",IF(AND(Master!$I$4=Master!$Y$3),"",IF(AND(Master!$I$5=Master!$V$3),"",IF(C14<18001,242,IF(C14<33501,402,IF(C14<54001,602,800)))))) -> 602 | P14: =IF(AND(Master!I$5=Master!V$2),"",IF(AND(Master!I$4=Master!Y$3),ROUND((C14)*0.1,0),IF(AND(Master!I$5=Master!V$3),ROUND((C14+D14)*0.1,0),""))) ->  | Q14: =IF(AND(C14=""),"",IF(AND(Master!$I$4=Master!$Y$3),"",Master!$H$21)) -> 2178 | R14: =IF(AND(C14=""),"",IF(AND(Master!$I$4=Master!$Y$3),"",Master!$H$21)) -> 2178 | S14: =IF(AND(C14=""),"",IF(AND(Master!$I$4=Master!$Y$3),"",Master!$I$21)) -> 0 | T14: =IF(AND(C14=""),"",IF(AND(Master!$I$4=Master!$Y$3),"",Master!$K$21)) -> 0 | U14: =IF(AND(C14=""),"",IF(AND(Master!$I$4=Master!$Y$3),"",Master!I25)) -> 2000 | W14: =IF(AND(C14=""),"",IF(AND(Master!$I$4=Master!$Y$3),"",Master!$L$21)) -> 0 | X14: 14533 | Y14: 41267 | AO14: OCT | AP14: 2019-10-01 | AQ14: 10 | AS14: 46500 | AT14: 46500 | AU14: 5580
A15: 9 | B15: 2019-11-01 | C15: 46500 | D15: =IF(AND(Master!$I$4=Master!$Y$3),"",IF(AND(C15=""),"",ROUND(12%*C15,0))) -> 5580 | E15: =IF(AND(Master!$I$4=Master!$Y$3),"",IF(AND(C15=""),"",ROUND(Master!$E$5%*C15,0))) -> 3720 | F15: =IF(AND(C15=""),"",IF(AND(Master!$B$21=""),"",Master!$B$21)) ->  | G15: =IF(AND(C15=""),"",IF(AND(Master!$C$21=""),"",Master!$C$21)) ->  | I15: =IF(AND(C15=""),"",IF(AND(Master!$D$21=""),"",Master!$D$21)) ->  | J15: =IF(AND(Master!I$5=Master!V$2),"",IF(AND(Master!I$4=Master!Y$3),ROUND((C15)*0.1,0),IF(AND(Master!I$5=Master!V$3),ROUND((C15+D15)*0.1,0),""))) ->  | K15: =IF(AND(C15=""),"",IF(AND(Master!$E$21=""),"",Master!$E$21)) ->  | L15: 55800 | M15: =IF(AND(C15=""),"",IF(AND(Master!$I$4=Master!$Y$3),"",Master!$F$21)) -> 4000 | N15: =IF(AND(C15=""),"",IF(AND(Master!$I$4=Master!$Y$3),"",IF(AND(Master!$I$5=Master!$V$3),"",Master!$G$21))) -> 3575 | O15: =IF(AND(B15=""),"",IF(AND(Master!$I$4=Master!$Y$3),"",IF(AND(Master!$I$5=Master!$V$3),"",IF(C15<18001,242,IF(C15<33501,402,IF(C15<54001,602,800)))))) -> 602 | P15: =IF(AND(Master!I$5=Master!V$2),"",IF(AND(Master!I$4=Master!Y$3),ROUND((C15)*0.1,0),IF(AND(Master!I$5=Master!V$3),ROUND((C15+D15)*0.1,0),""))) ->  | Q15: =IF(AND(C15=""),"",IF(AND(Master!$I$4=Master!$Y$3),"",Master!$H$21)) -> 2178 | R15: =IF(AND(C15=""),"",IF(AND(Master!$I$4=Master!$Y$3),"",Master!$H$21)) -> 2178 | S15: =IF(AND(C15=""),"",IF(AND(Master!$I$4=Master!$Y$3),"",Master!$I$21)) -> 0 | T15: =IF(AND(C15=""),"",IF(AND(Master!$I$4=Master!$Y$3),"",Master!$K$21)) -> 0 | U15: =IF(AND(C15=""),"",IF(AND(Master!$I$4=Master!$Y$3),"",Master!J25)) -> 4000 | W15: =IF(AND(C15=""),"",IF(AND(Master!$I$4=Master!$Y$3),"",Master!$L$21)) -> 0 | X15: 16533 | Y15: 39267 | AO15: NOV | AP15: 2019-11-01 | AQ15: 11 | AS15: 46500 | AT15: 46500 | AU15: 5580
A16: 10 | B16: 2019-12-01 | C16: 46500 | D16: =IF(AND(Master!$I$4=Master!$Y$3),"",IF(AND(C16=""),"",ROUND(12%*C16,0))) -> 5580 | E16: =IF(AND(Master!$I$4=Master!$Y$3),"",IF(AND(C16=""),"",ROUND(Master!$E$5%*C16,0))) -> 3720 | F16: =IF(AND(C16=""),"",IF(AND(Master!$B$21=""),"",Master!$B$21)) ->  | G16: =IF(AND(C16=""),"",IF(AND(Master!$C$21=""),"",Master!$C$21)) ->  | I16: =IF(AND(C16=""),"",IF(AND(Master!$D$21=""),"",Master!$D$21)) ->  | J16: =IF(AND(Master!I$5=Master!V$2),"",IF(AND(Master!I$4=Master!Y$3),ROUND((C16)*0.1,0),IF(AND(Master!I$5=Master!V$3),ROUND((C16+D16)*0.1,0),""))) ->  | K16: =IF(AND(C16=""),"",IF(AND(Master!$E$21=""),"",Master!$E$21)) ->  | L16: 55800 | M16: =IF(AND(C16=""),"",IF(AND(Master!$I$4=Master!$Y$3),"",Master!$F$21)) -> 4000 | N16: =IF(AND(C16=""),"",IF(AND(Master!$I$4=Master!$Y$3),"",IF(AND(Master!$I$5=Master!$V$3),"",Master!$G$21))) -> 3575 | O16: =IF(AND(B16=""),"",IF(AND(Master!$I$4=Master!$Y$3),"",IF(AND(Master!$I$5=Master!$V$3),"",IF(C16<18001,242,IF(C16<33501,402,IF(C16<54001,602,800)))))) -> 602 | P16: =IF(AND(Master!I$5=Master!V$2),"",IF(AND(Master!I$4=Master!Y$3),ROUND((C16)*0.1,0),IF(AND(Master!I$5=Master!V$3),ROUND((C16+D16)*0.1,0),""))) ->  | Q16: =IF(AND(C16=""),"",IF(AND(Master!$I$4=Master!$Y$3),"",Master!$H$21)) -> 2178 | R16: =IF(AND(C16=""),"",IF(AND(Master!$I$4=Master!$Y$3),"",Master!$H$21)) -> 2178 | S16: =IF(AND(C16=""),"",IF(AND(Master!$I$4=Master!$Y$3),"",Master!$I$21)) -> 0 | T16: =IF(AND(C16=""),"",IF(AND(Master!$I$4=Master!$Y$3),"",Master!$K$21)) -> 0 | U16: =IF(AND(C16=""),"",IF(AND(Master!$I$4=Master!$Y$3),"",Master!K25)) -> 1400 | W16: =IF(AND(C16=""),"",IF(AND(Master!$I$4=Master!$Y$3),"",Master!$L$21)) -> 0 | X16: 13933 | Y16: 41867 | AO16: DEC | AP16: 2019-12-01 | AQ16: 12 | AS16: 46500 | AT16: 46500 | AU16: 5580
A17: 11 | B17: 2020-01-01 | C17: 46500 | D17: =IF(AND(Master!$I$4=Master!$Y$3),"",IF(AND(C17=""),"",ROUND(12%*C17,0))) -> 5580 | E17: =IF(AND(Master!$I$4=Master!$Y$3),"",IF(AND(C17=""),"",ROUND(Master!$E$5%*C17,0))) -> 3720 | F17: =IF(AND(C17=""),"",IF(AND(Master!$B$21=""),"",Master!$B$21)) ->  | G17: =IF(AND(C17=""),"",IF(AND(Master!$C$21=""),"",Master!$C$21)) ->  | I17: =IF(AND(C17=""),"",IF(AND(Master!$D$21=""),"",Master!$D$21)) ->  | J17: =IF(AND(Master!I$5=Master!V$2),"",IF(AND(Master!I$4=Master!Y$3),ROUND((C17)*0.1,0),IF(AND(Master!I$5=Master!V$3),ROUND((C17+D17)*0.1,0),""))) ->  | K17: =IF(AND(C17=""),"",IF(AND(Master!$E$21=""),"",Master!$E$21)) ->  | L17: 55800 | M17: =IF(AND(C17=""),"",IF(AND(Master!$I$4=Master!$Y$3),"",Master!$F$21)) -> 4000 | N17: =IF(AND(C17=""),"",IF(AND(Master!$I$4=Master!$Y$3),"",IF(AND(Master!$I$5=Master!$V$3),"",Master!$G$21))) -> 3575 | O17: =IF(AND(B17=""),"",IF(AND(Master!$I$4=Master!$Y$3),"",IF(AND(Master!$I$5=Master!$V$3),"",IF(C17<18001,242,IF(C17<33501,402,IF(C17<54001,602,800)))))) -> 602 | P17: =IF(AND(Master!I$5=Master!V$2),"",IF(AND(Master!I$4=Master!Y$3),ROUND((C17)*0.1,0),IF(AND(Master!I$5=Master!V$3),ROUND((C17+D17)*0.1,0),""))) ->  | Q17: =IF(AND(C17=""),"",IF(AND(Master!$I$4=Master!$Y$3),"",Master!$H$21)) -> 2178 | R17: =IF(AND(C17=""),"",IF(AND(Master!$I$4=Master!$Y$3),"",Master!$H$21)) -> 2178 | S17: =IF(AND(C17=""),"",IF(AND(Master!$I$4=Master!$Y$3),"",Master!$I$21)) -> 0 | T17: =IF(AND(C17=""),"",IF(AND(Master!$I$4=Master!$Y$3),"",Master!$K$21)) -> 0 | U17: =IF(AND(C17=""),"",IF(AND(Master!$I$4=Master!$Y$3),"",Master!L25)) -> 1400 | W17: =IF(AND(C17=""),"",IF(AND(Master!$I$4=Master!$Y$3),"",Master!$L$21)) -> 0 | X17: 13933 | Y17: 41867 | AO17: JAN | AP17: 2020-01-01 | AQ17: 1 | AS17: 46500 | AT17: 46500 | AU17: 5580
A18: 12 | B18: 2020-02-01 | C18: 46500 | D18: =IF(AND(Master!$I$4=Master!$Y$3),"",IF(AND(C18=""),"",ROUND(12%*C18,0))) -> 5580 | E18: =IF(AND(Master!$I$4=Master!$Y$3),"",IF(AND(C18=""),"",ROUND(Master!$E$5%*C18,0))) -> 3720 | F18: =IF(AND(C18=""),"",IF(AND(Master!$B$21=""),"",Master!$B$21)) ->  | G18: =IF(AND(C18=""),"",IF(AND(Master!$C$21=""),"",Master!$C$21)) ->  | I18: =IF(AND(C18=""),"",IF(AND(Master!$D$21=""),"",Master!$D$21)) ->  | J18: =IF(AND(Master!I$5=Master!V$2),"",IF(AND(Master!I$4=Master!Y$3),ROUND((C18)*0.1,0),IF(AND(Master!I$5=Master!V$3),ROUND((C18+D18)*0.1,0),""))) ->  | K18: =IF(AND(C18=""),"",IF(AND(Master!$E$21=""),"",Master!$E$21)) ->  | L18: 55800 | M18: =IF(AND(C18=""),"",IF(AND(Master!$I$4=Master!$Y$3),"",Master!$F$21)) -> 4000 | N18: =IF(AND(C18=""),"",IF(AND(Master!$I$4=Master!$Y$3),"",IF(AND(Master!$I$5=Master!$V$3),"",Master!$G$21))) -> 3575 | O18: =IF(AND(B18=""),"",IF(AND(Master!$I$4=Master!$Y$3),"",IF(AND(Master!$I$5=Master!$V$3),"",IF(C18<18001,242,IF(C18<33501,402,IF(C18<54001,602,800)))))) -> 602 | P18: =IF(AND(Master!I$5=Master!V$2),"",IF(AND(Master!I$4=Master!Y$3),ROUND((C18)*0.1,0),IF(AND(Master!I$5=Master!V$3),ROUND((C18+D18)*0.1,0),""))) ->  | Q18: =IF(AND(C18=""),"",IF(AND(Master!$I$4=Master!$Y$3),"",Master!$H$21)) -> 2178 | R18: =IF(AND(C18=""),"",IF(AND(Master!$I$4=Master!$Y$3),"",Master!$H$21)) -> 2178 | S18: =IF(AND(C18=""),"",IF(AND(Master!$I$4=Master!$Y$3),"",Master!$I$21)) -> 0 | T18: =IF(AND(C18=""),"",IF(AND(Master!$I$4=Master!$Y$3),"",Master!$K$21)) -> 0 | U18: =IF(AND(C18=""),"",IF(AND(Master!$I$4=Master!$Y$3),"",Master!M25)) -> 100 | W18: =IF(AND(C18=""),"",IF(AND(Master!$I$4=Master!$Y$3),"",Master!$L$21)) -> 0 | X18: =IF(AND(B18=""),"",SUM(M18:W18)) -> 12633 | Y18: =IF(AND(B18=""),"",IF(AND(L18="",X18=""),"",SUM(L18-X18))) -> 43167 | AO18: FEB | AP18: 2020-02-01 | AQ18: 2 | AS18: 46500 | AT18: 46500 | AU18: 5580
A19: 13 | B19: Bonus | H19: =IF(AND(Master!I3=""),"",IF(AND(Master!I3=Master!S2),Master!J3,IF(AND(Master!I3=Master!S3),"0",""))) -> 6774 | L19: =IF(AND(B19=""),"",SUM(C19,D19,E19,F19,G19,I19,K19,H19)) -> 6774 | X19: 0 | Y19: 6774
A20: 14 | B20: PL Surrender | C20: =IF(AND(Master!$I$4=Master!$Y$3),"",IF(Master!E2=Master!S3,0,VLOOKUP(Master!I2,AO7:AU19,5,0))/2) -> 23250 | D20: =IF(AND(Master!$I$4=Master!$Y$3),"",IF(Master!E2=Master!S3,0,VLOOKUP(Master!I2,AO7:AU19,7,0))/2) -> 2790 | L20: =IF(AND(B20=""),"",SUM(C20,D20,E20,F20,G20,I20,K20,H20)) -> 26040 | X20: 0 | Y20: 26040
A21: 15 | B21: DA Arrear | D21: =IF(AND(Master!$I$4=Master!$Y$3),"",(ROUND(12%*AS7,0)-ROUND(9%*AS7,0))*2) -> 2706 | J21: =IF(AND(B21=""),"",IF(AND(Master!$I$4=Master!$Y$3),"",IF(AND(Master!$I$5=Master!$V$3),ROUND((C21+D21)*0.1,0),""))) ->  | L21: 2706 | N21: =IF(AND(D21=""),"",IF(AND(Master!$I$4=Master!$Y$3),"",IF(AND(Master!$I$5=Master!$V$3),"",D21))) -> 2706 | P21: =IF(AND(B21=""),"",IF(AND(Master!$I$4=Master!$Y$3),"",IF(AND(Master!$I$5=Master!$V$3),ROUND((C21+D21)*0.1,0),""))) ->  | X21: 2706 | Y21: 0
A22: 16 | B22: DA Arrear | J22: =IF(AND(B22=""),"",IF(AND(Master!$I$4=Master!$Y$3),"",IF(AND(Master!$I$5=Master!$V$3),ROUND((C22+D22)*0.1,0),""))) ->  | L22: 0 | N22: =IF(AND(D22=""),"",IF(AND(Master!$I$4=Master!$Y$3),"",IF(AND(Master!$I$5=Master!$V$3),"",D22))) ->  | P22: =IF(AND(B22=""),"",IF(AND(Master!$I$4=Master!$Y$3),"",IF(AND(Master!$I$5=Master!$V$3),ROUND((C22+D22)*0.1,0),""))) ->  | X22: 0 | Y22: 0
A23: 17 | J23: =IF(AND(B23=""),"",IF(AND(Master!$I$4=Master!$Y$3),"",IF(AND(Master!$I$5=Master!$V$3),ROUND((C23+D23)*0.1,0),""))) ->  | P23: =IF(AND(B23=""),"",IF(AND(Master!$I$4=Master!$Y$3),"",IF(AND(Master!$I$5=Master!$V$3),ROUND((C23+D23)*0.1,0),""))) -> 
A24: 18 | J24: =IF(AND(B24=""),"",IF(AND(Master!$I$4=Master!$Y$3),"",IF(AND(Master!$I$5=Master!$V$3),ROUND((C24+D24)*0.1,0),""))) ->  | P24: =IF(AND(B24=""),"",IF(AND(Master!$I$4=Master!$Y$3),"",IF(AND(Master!$I$5=Master!$V$3),ROUND((C24+D24)*0.1,0),""))) -> 
A25: 19 | J25: =IF(AND(B25=""),"",IF(AND(Master!$I$4=Master!$Y$3),"",IF(AND(Master!$I$5=Master!$V$3),ROUND((C25+D25)*0.1,0),""))) ->  | P25: =IF(AND(B25=""),"",IF(AND(Master!$I$4=Master!$Y$3),"",IF(AND(Master!$I$5=Master!$V$3),ROUND((C25+D25)*0.1,0),""))) -> 
A26: 20 | J26: =IF(AND(B26=""),"",IF(AND(Master!$I$4=Master!$Y$3),"",IF(AND(Master!$I$5=Master!$V$3),ROUND((C26+D26)*0.1,0),""))) ->  | P26: =IF(AND(B26=""),"",IF(AND(Master!$I$4=Master!$Y$3),"",IF(AND(Master!$I$5=Master!$V$3),ROUND((C26+D26)*0.1,0),""))) -> 
A27: G.Total | C27: =SUM(C7:C26) -> 575650 | D27: =SUM(D7:D26) -> 71784 | E27: 44192 | F27: 0 | G27: 0 | H27: 6774 | I27: 0 | J27: 0 | K27: 0 | L27: 698400 | M27: 48000 | N27: 45606 | O27: 7190 | P27: 0 | Q27: 26136 | R27: 26136 | S27: 0 | T27: 0 | U27: 14600 | V27: 220 | W27: 0 | X27: 167888 | Y27: 530512
D29: Signature | S29: Signature and Seal DDO
N30: =IF(AND(F30=""),"",IF(AND($K$8=""),"",$K$8)) -> 

Sheet Extra deduc (hidden)
E2: Deduction Detail
E3: osru dVkSrh ds vfrfjDr dVkSfr;k ftlds rgr vki vk;dj esa NwV pkgrs gSa] rFkk vfrfjDr ¼vU;½ vk; dks ;gkW ij bUnzkt djsA | AO3: YES
AO4: NO
E5: 1- edku fdjk;k HkRrk ¼ vxj jlhn ds ek/;e ls NwV ysuh gS rks YES ugh rks No lysDV djsA½ | F5: NO | G5: =IF(AND(F5=""),"0",IF(AND(F5=AO4),"0",G32)) -> 0 | H5: 18- vU; vk; /kkjk
E6: 2- euksjatu Hkrk /kkjk 16 (ii) ds vUrxZr | H6: 19- /kkjk 80CCC - isa'ku Iyku gsrq va'knku
E7: 3- O;o;k; dj /kkjk 16 ¼iii½ ds vUrxrZ | H7: 20- vU; tek jkf'k ¼/kkjk 80 lh ds vUrxZr½
E8: 4- x`g lEifr ls izkIr fdjk;k & vk; | H8: 21- /kkjk 80CCD(1B) -uohu isa'ku ;kstuk esa vfrfjDr va'knku ¼vf/kdre :- 50]000½
E9: 5- x`gdj | H9: 22- /kkjk 80D - fpfdRlk chek izhfe;e
E10: 6- x`g _.k dh ewy fdLr ;gkW fy[kuh gSaA tks NwV ysuh gSaA | H10: 23- /kkjk 80DD - fodykax vkfJrksa ds fpfdRlk mipkj
E11: 7- x`g _.k fdLr ij C;kt tks NwV ysuk gS] ;gkW fy[ksA | H11: 24- /kkjk 80DDB - fof'k"V jksxksa ds mipkj gsrq dVkSrh ¼vf/kdre 40000 :½
E12: 8- thou chek izhfe;e ¼tks osru ls ugh dkVk x;k½ LIC | H12: 25- /kkjk 80E - mPp f'k{kk gsrq fy, _.k dk C;kt ¼/kkjk 80E½
E13: 9- ih-,y-vkbZ- (PLI) | H13: 26- /kkjk 80G - /kekZFkZ laLFkkvksa vkfn dks fn;s nku ¼d Js.kh 100% ,oa [k Js.kh 50%½
E14: 10- V;w'ku Qhl (Tution Fees) | H14: 27- /kkjk 80U - LFkkbZ :i ls 'kkjhfjd vleFkZrrk
E15: 11- ;w- ,y- vkbZ- ih-@okf"kZd Iyku | H15: 28- /kkjk 80TTA - cpr [kkrs ij vf/kdre C;kt :- 10]000 194(IA)
E16: 12- jk"Vªh; cpr i= (NSC) | H16: 29- /kkjk 80 GGA - vuqeksfnr oSKkfud]lkekftd]xzkeh.k fodkl vkfn gsrq fn;k x;k nku
E17: 13- jk"Vªh; cpr i= ij vnr C;kt | H17: 30- jkgr /kkjk 89 ds rgr ¼ vxj NwV ysuh gS rks YES ugh rks No lysDV djsA½ | I17: NO | J17: 0
E18: 14- yksd Hkfo"; fuf/k (PPF) | H18: 31- bfDoVh fyad lsfoax Ldhe
E19: 15- jk"Vªh; cpr Ldhe (NSS) | H19: 32- LFkfxr okf"kZdh
E20: 16- lqdU;k le`f) ;kstuk (SSY) | H20: 33- osru ds vykok tek djk;k x;k aavk;dj (TDS)
E21: 17- vU; dksbZ izdkj dh dVkSrh (OTHER) | H21: 34- vU; dksbZ Hkh izdkj NqV feyrh gSa tks /kkjk 10¼13&,½ o 10¼13½ds vUrxZr vkrh gks rks ;gk fy[ksA ,oa vU; dj eqDr HkRrk ;gkW fy[ksaA
G23: For HRA
A25: edku fdjk;k NwV ds fy, jlhn dh vko';drk gks rks funsZ'kksa dh ikyuk djrs gq, jlhn dh jkf'k izkIr dj ldrs gSaA
A26: MONTHS | B26: "Y" | C26: Basic Pay. | D26: HRA | E26: E Please select months by typing "Y"
A27: MARCH 19 | B27: Y | C27: ='GA 55'!C7 -> 45100 | D27: ='GA 55'!E7 -> 3608
A28: APRIL 19 | B28: Y | C28: ='GA 55'!C8 -> 45100 | D28: ='GA 55'!E8 -> 3608 | E28: After selecting months, give rent paid amount.
A29: MAY 19 | B29: Y | C29: ='GA 55'!C9 -> 45100 | D29: ='GA 55'!E9 -> 3608 | H29: funsZ'k
A30: JUNE 19 | B30: Y | C30: ='GA 55'!C10 -> 45100 | D30: ='GA 55'!E10 -> 3608 | H30: E vxj vkidks izfrekg jlhn dh jkf'k ls de jkf'k dh NwV ysuh gSa rks lkeusa lQsn dyj dh lSy F31 esa izfrekg ds vuqlkj jlhn jkf'k fy[k ldrs gSaA
A31: JULY 19 | B31: Y | C31: ='GA 55'!C11 -> 46500 | D31: ='GA 55'!E11 -> 3720 | E31: RENT PAID AMOUNT MONTHLY F | G31: =G37 -> 8480
A32: AUGUST 19 | B32: Y | C32: ='GA 55'!C12 -> 46500 | D32: ='GA 55'!E12 -> 3720 | E32: HRA EXEMPTION AMOUNT F | G32: =IF((G31*12)>C39*10%, MIN(ROUND(G31*12-(C39)*10%,0),G35),0) -> 44192 | H32: P fu;ekuqlkj NwV ysuh gSa rks dqN Hkh ugh fy[kuk gSa A lkeus okyh jkf'k ftl ij LVkj yxk gqvk gSa ] og vij izFke dkWye esa lSy ua- F5 esa Lor% vk tk;sxhA
A33: SEPTEMBER 19 | B33: Y | C33: ='GA 55'!C13 -> 46500 | D33: ='GA 55'!E13 -> 3720
A34: OCTOBER 19 | B34: Y | C34: ='GA 55'!C14 -> 46500 | D34: ='GA 55'!E14 -> 3720
A35: NOVEMBER 19 | B35: Y | C35: ='GA 55'!C15 -> 46500 | D35: ='GA 55'!E15 -> 3720 | E35: Max. HRA exemption amount F | G35: =D39 -> 44192 | H35: E ;g jkf'k tks vkius bl o"kZ ¼12 ekg½ esa HRA (edku fdjk;k HkÙkk½ ds :Ik esa mBkyh gSA
A36: DECEMBER 19 | B36: Y | C36: ='GA 55'!C16 -> 46500 | D36: ='GA 55'!E16 -> 3720 | E36: Rent receipt required for max. exemption F | G36: =ROUND(((10%*C39)+D39),0) -> 101757 | H36: E ;g iwjs o"kZ ¼12 ekg½ dh HRA dh jlhn jkf'k cuh gSA
A37: JANUARY 20 | B37: Y | C37: ='GA 55'!C17 -> 46500 | D37: ='GA 55'!E17 -> 3720 | E37: House Rent Per Month F | G37: =ROUND(G36/B39, 0) -> 8480 | H37: Eizfrekg jlhn dh jkf'k ¼vxj fdlh ;wtj us lQsn dyj esa vk jgh vkVks jkf'k dks gVk fn;k gSa ;k fMfyV dj fn;k gks rks ;g jkf'k lSy F31 esa fy[k nsossA ½
A38: FEBRUARY 18 | B38: Y | C38: ='GA 55'!C18 -> 46500 | D38: ='GA 55'!E18 -> 3720
A39: TOTAL | B39: =COUNTIF(B27:B38, "Y") -> 12 | C39: =ROUND((SUM(C27:C38)),0)+C40 -> 575650 | D39: =ROUND((SUM(D27:D38)),0)+D40 -> 44192 | E39: E viuh vko';drkuqlkj ekg ?kVk c<+k ldrsa gSA
C40: =SUM('GA 55'!C20:C26)+SUM('GA 55'!E20:E26) -> 23250 | D40: =SUM([1]Bills!F23:F27) -> 0
E41: If required | G41: =IF((G31*12)>('[1]GA55 Summry'!C26+'[1]GA55 Summry'!D26)*10%, MIN(ROUND(G31*12-('[1]GA55 Summry'!C26+'[1]GA55 Summry'!D26)*10%,0),G35),0) -> 33080

Sheet COMPUTATION (hidden)
A1: =IF(AND(Master!D8=""),"",CONCATENATE("Office Name :- ",PROPER(Master!D8))) -> Office Name :- Government Sr. Secondary School Inderwara , Rani (Pali)
C2: vk;dj x.kuk izi= o"kZ | G2: 2019-20 | I2: ¼dj fu/kkZj.k o"kZ | L2: 2020-21 | N2: ½
A3: 1 | B3: uke deZpkjh % | D3: =UPPER(IF(Master!D9="","",Master!D9)) -> HEERALAL JAT | I3: in % | J3: =UPPER(IF(Master!H9="","",Master!H9)) -> SR TEACHER | M3: PAN : | N3: =UPPER(IF(Master!D12="","",Master!D12)) -> ADTXXXXXX2
A4: 2 | B4: vk; % o"kZ&2019&20 esa izkIr dqy osru ¼ dj ;ksX; lqfo/kkvksa ds eqY; lfgr ½ | N4: #- | O4: ='GA 55'!L27+'GA 55'!J27 -> 698400 | Q4: E | R4: ljdkj }kjk tks jkf'k NPS esa tek djkbZ xbZ gSa] og jkf'k ;gkW dqy vk; esa n'kkZ;h xbZ gSaA
A5: 3 | B5: x`g fdjk;k] /kkjk 10¼13-A½ ds vUrxrZ ,oa /kkjk 10¼14½ds vUrxrZ vU; Hkrs tks dj eqDÙk gSA | N5: #- | O5: ='Extra deduc'!G5+'GA 55'!G27 -> 0
A6: 4 | B6: 'ks"k ¼2&3½ | N6: #- | O6: =O4-O5 -> 698400
A7: 5 | B7: ¼i½euksjatu Hkrk /kkjk 16 ¼ii½ ds vUrxrZ | K7: ='Extra deduc'!G6 -> 0
B8: ¼ii½ O;o;k; dj /kkjk 16 ¼iii½ ds vUrxrZ | K8: ='Extra deduc'!G7 -> 0
B9: ¼iii½ LVs.MMZ fMMsD'ku (Standard Deduction) 50]000 ¼vf/kdre½ | K9: 50000 | N9: #- | O9: =SUM(K7:M9) -> 50000
A10: 6 | B10: 'ks"k ¼4&5½ | N10: #- | O10: =O6-O9 -> 648400
A11: 7 | B11: ¼v½x`g lEifr ls vk;%¼1½ Loa; ds mi;ksx esa &'kwU; | I11: ¼2½ izkIr fdjk;k #- | K11: ='Extra deduc'!G8 -> 0
B12: ¼c½ ?kVk;sa | D12: fdjk;s dk 30% | F12: x`g _.k ij C;kt | I12: x`gdj | K12: ;ksx 7¼c½
D13: =ROUND(K11*0.3,0) -> 0 | F13: ='Extra deduc'!G11 -> 0 | I13: ='Extra deduc'!G9 -> 0 | K13: =D13+F13+I13 -> 0
B14: 'ks"k &@$¼7¼v½ ,oa ;ksx 7¼c½ dk½ | N14: #- | O14: =K11-K13 -> 0
A15: 8 | B15: cpr [kkrs ij C;kt % | E15: ='Extra deduc'!J15 -> 0 | J15: dqy 'ks"k &@$¼6,oa 7½ | N15: #- | O15: =O10+O14 -> 648400
A16: 9 | B16: vU; vk; % | E16: ='Extra deduc'!J5 -> 0 | K16: ;ksx ¼8$9½ | N16: #- | O16: =E15+E16 -> 0
A17: 10 | B17: ldy vk; | N17: #- | O17: =O15+O16 -> 648400
A18: 11 | B18: ?kVkb;s dVkSSfr;k¡ %& /kkjk US 80C, 80CCC,80CCD (1)
B19: (A) vf/kdre lhek 1]50]000@& ¼/kkjk 80CCE ½ ] ¼/kkjk 80CCD (2), ds vykok
B20: (i) | C20: jkT; chek ¼SI) | F20: #- | G20: ='GA 55'!M27 -> 48000 | H20: (xi) | I20: isa'ku ;kstuk esa va'knku ECPF /kkjk 80ccd(1½ | L20: #- | M20: ='GA 55'!P27 -> 0
B21: (ii) | C21: thou chek izhfe;e ¼LIC) | F21: #- | G21: ='GA 55'!Q27 -> 26136 | H21: (xii) | I21: isa'ku Iyku gsrq va'knku ¼/kkjk 80ccc½ | L21: #- | M21: ='Extra deduc'!J6 -> 0
B22: (iii) | C22: jk"Vªh; cpr i= ¼NSC) | F22: #- | G22: ='Extra deduc'!G16 -> 0 | H22: (xiii) | I22: jk"Vªh; cpr i= ij vnr C;kt | L22: #- | M22: ='Extra deduc'!G17 -> 0
B23: (iv) | C23: yksd Hkfo"; fuf/k ¼PPF) | F23: #- | G23: ='Extra deduc'!G18 -> 0 | H23: (xiv) | I23: V;w'ku Qhl | L23: #- | M23: ='Extra deduc'!G14 -> 0
B24: (v) | C24: jk"Vªh; cpr Ldhe ¼NSS) | F24: #- | G24: ='Extra deduc'!G19 -> 0 | H24: (xv) | I24: bfDoVh fyad lsfoax Ldhe | L24: #- | M24: ='Extra deduc'!J18 -> 0
B25: (vi) | C25: lkekU; izko/kk;h fuf/k ¼GPF) | F25: #- | G25: ='GA 55'!N27 -> 45606 | H25: (xvi) | I25: LFkfxr okf"kZdh ¼Defferred Annuty) | L25: #- | M25: ='Extra deduc'!J19 -> 0
B26: (vii) | C26: lkewfgd chek izhfe;e ¼G.Ins.) | F26: #- | G26: ='GA 55'!V27 -> 220 | H26: (xvii) | I26: ih-,y-vkbZ- ¼PLI) | L26: #- | M26: ='Extra deduc'!G13 -> 0
B27: (viii) | C27: ;w- ,y- vkbZ- ih-@okf"kZd Iyku | F27: #- | G27: ='Extra deduc'!G15 -> 0 | H27: (xviii) | I27: vU; tekjkf'k ¼/kkjk 80 lh ds vUrxZr½ | L27: #- | M27: ='Extra deduc'!J7 -> 0
B28: (ix) | C28: x`g _.k fdLr ¼HBA Premium) | F28: #- | G28: ='Extra deduc'!G10 -> 0 | H28: (xix) | I28: lqdU;k le`f) ;kstuk esa tek jkf'k | L28: #- | M28: ='Extra deduc'!G20 -> 0
B29: (x) | C29: osru ls vfrfjDr thou chek (Extra LIC) | F29: #- | G29: ='Extra deduc'!G12 -> 0 | H29: (xx) | I29: vU; | L29: #- | M29: ='Extra deduc'!G21 -> 0
B30: ;ksx ( i ls xviii ) | L30: #- | M30: =SUM(G20:G29)+SUM(M20:M29) -> 119962
B31: vf/kdre dVkSrh dh jkf'k 1-50 yk[k #i, rd | N31: #- | O31: =IF(M30<150001,ROUND(M30,0),150000) -> 119962 | R31: ljdkj }kjk tks jkf'k NPS esa tek djkbZ xbZ gSa] og jkf'k 1]50yk[k ls vfrfjDr vk;dj es NwV ds nk;jsa esa vkrh gSa A blfy, ;g jkf'k dkWye la[;k 11(B) esa /kkjk 80CCD(2) ds rgr i`FkDd NwV esa n'kkZ;h xbZ gSaA
B32: (B) ?kVkb;s& /kkjk 80CCD(2) fu;ksDrk }kjk isa'ku va'knku dh jkf'k ¼vf/kdre osru dk 10%) i`Fkd ls NwV | O32: =M20 -> 0 | Q32: E
B33: (C) ?kVkb;s & /kkjk 80CCD (1B) uohu isa'ku ;kstuk esa vfrfjDr va'knku ¼vf/kdre :- 50]000) | N33: #- | O33: ='Extra deduc'!J8 -> 0
B34: ;ksx 11(A+B+C) | N34: #- | O34: =SUM(O31:O33) -> 119962
A35: 12 | B35: vU; dVkSfr;k¡
B36: 1-/kkjk 80 D fpfdRlk chek izhfe;e ¼Lo;a]ifr@iRuh o cPpksa ds fy, : 25000] ekrk&firk ds fy, : 25000]lhfu;j flVhtu : 50000½ | N36: #- | O36: ='Extra deduc'!J9 -> 0
B37: 2- /kkjk 80DD fodykax vkfJrksa ds fpfdRlk mipkj ¼vf/kdre 75]000 rFkk 80% ;k vf/kd fodykaxrk 125]000½ | N37: #- | O37: ='Extra deduc'!J10 -> 0
B38: 3- /kkjk 80DDB fof'k"V jksaxksa ds mipkj gsrq dVkSrh ¼vf/kdre : 40]000] lhfu;j flVhtu gsrq : 100]000½ | N38: #- | O38: ='Extra deduc'!J11 -> 0
B39: 4- /kkjk 80E mPp f'k{kk gsrq fy, _.k dk C;kt | N39: #- | O39: ='Extra deduc'!J12 -> 0
B40: 5- /kkjk 80G /kekZFkZ laLFkkvksa vkfn dks fn;s nku ¼ d Js.kh esa 100 izfr'kr ,oa [k Js.kh esa 50 izfr'kr½ | N40: #- | O40: ='Extra deduc'!J13 -> 0
B41: 6- /kkjk 80U LFkkbZ :i ls 'kkjhfjd vleFkZrrk dh n'kk esa ¼vf/kdre 75]000 rFkk vf/kfu;e 1995ds vuqlkj 125]000½ | N41: #- | O41: ='Extra deduc'!J14 -> 0
B42: 7- /kkjk 80 TTA cpr [kkrs ij vf/kdre C;kt :- 10]000 194(IA) , ( ofj"B ukxfjdks C;kt ij NwV 50000rd ½ | N42: #- | O42: =IF('Extra deduc'!J15<10001, 'Extra deduc'!J15, 10000) -> 0
B43: 8- /kkjk 80 GGA vuqeksfnr oSKkfud] lkekftd] xzkeh.k fodkl vkfn gsrq fn;k x;k nku | N43: #- | O43: ='Extra deduc'!J16 -> 0
B44: dqy ;ksx 12 ¼ 1 ls 8 rd ½ | N44: #- | O44: =SUM(O36:O43) -> 0
A45: 13 | B45: dqy dVkSrh ( 11 + 12) | N45: #- | O45: =O34+O44 -> 119962
A46: 14 | B46: dj ;ksX; vk; ( 10 - 13 ) | N46: #- | O46: =(O17-O45) -> 528438
A47: 15 | B47: dqy vk; dh jkf'k dks lEiw.kZ djuk ¼ nl ds xq.kd esa ½ /kkjk 288A | N47: #- | O47: =ROUND(O46,-1) -> 528440
A48: 16 | B48: vk;dj dh x.kuk mijksDr dkWye 15 ds vk/kkj ij
B49: ,d O;fDr dj nkrk | F49: ofj"B ukxfjd ¼60 ls 80 o"kZ rd½ | J49: 80 o"kZ ;k vf/kd vk;q
B50: 2,50,000 rd | E50: Nil | F50: 3,00,000 rd | I50: Nil | N50: #- | O50: 0 | W50: =ROUND(IF(O47<=250000,0,IF(O47>=500000,12500,IF(O47<=500000,0+(O47-250000)*0.05))),0) -> 12500 | X50: =ROUND(IF(O47<=300000,0,IF(O47>=500000,10000,IF(O47<=500000,(O47-300000)*0.05))),0) -> 10000 | Y50: 0
B51: 2,50,001-5,00,000 | E51: 0.05 | F51: 3,00,001-5,00,000 | I51: 0.05 | J51: 5,00,000 rd | M51: Nil | N51: #- | O51: =W50 -> 12500 | W51: =ROUND(IF(O47<=500000,0,IF(O47>=1000000,100000,IF(O47<=1000000,(O47-500000)*0.2,"0"))),0) -> 5688 | X51: =ROUND(IF(O47<=500000,0,IF(O47>=1000000,100000,IF(O47<=1000000,(O47-500000)*0.2,"0"))),0) -> 5688 | Y51: =ROUND(IF(O47<=500000,0,IF(O47>=1000000,100000,IF(O47<=1000000,(O47-500000)*0.2,"0"))),0) -> 5688
B52: 5,00,001-10,00,000 | E52: 0.2 | F52: 5,00,001-10,00,000 | I52: 0.2 | J52: 5,00,001-10,00,000 | M52: 0.2 | N52: #- | O52: =W51 -> 5688 | W52: =ROUND(IF(O47>1000000,(O47-1000000)*0.3,"0"),0) -> 0 | X52: =ROUND(IF(O47>1000000,(O47-1000000)*0.3,"0"),0) -> 0 | Y52: =ROUND(IF(O47>1000000,(O47-1000000)*0.3,"0"),0) -> 0
B53: 10,00,001 ,oa vf/kd | E53: 0.3 | F53: 10,00,000 ls vf/kd | I53: 0.3 | J53: 10,00,000 ls vf/kd | M53: 0.3 | N53: #- | O53: =W52 -> 0 | W53: =ROUND(IF(O47<=250000,0,IF(O47<=500000,(O47-250000)*0.05,IF(O47<=1000000,12500+(O47-500000)*0.2,IF(O47>1000000,112500+(O47-1000000)*0.3,"0")))),0) -> 18188 | X53: =ROUND(IF(O47<=300000,0,IF(O47<=500000,(O47-300000)*0.05,IF(O47<=1000000,10000+(O47-500000)*0.2,IF(O47>1000000,110000+(O47-1000000)*0.3,"0")))),0) -> 15688 | Y53: =ROUND(IF(O47<=250000,0,IF(O47<=500000,(O47-250000)*0.05,IF(O47<=1000000,0+(O47-500000)*0.2,IF(O47>1000000,100000+(O47-1000000)*0.3,"0")))),0) -> 5688
B54: ¼1½ ;ksx vk;dj | N54: #- | O54: =SUM(O50:O53) -> 18188
B55: ¼2½ NwV ?kkjk 87¼A½ ¼ 5yk[k rd dh dj ;ksX; vk; ij vk;dj dh NwV vf/kdre :- 12500@& rd½ | N55: #- | O55: =IF(O47>500000,0,IF(O54<12500,O54,12500)) -> 0
B56: ¼3½ 'ks"k vk;dj ¼1&2½ | N56: #- | O56: =O54-O55 -> 18188 | X56: =IF(T59>350000,0,IF(T59<2501,T59,2500)) -> 0
B57: ¼4½ | C57: f'k{kk ,oa fpfdRlk midj 4% ¼vk;dj ij ½ | N57: #- | O57: =ROUND((O56*0.04),0) -> 728
B58: dqy vk;dj ¼3$4½ | N58: #- | O58: =SUM(O56:O57) -> 18916
A59: 17 | B59: ?kVkb;s %& jkgr /kkjk 89 ds rgr | N59: #- | O59: ='Extra deduc'!J17 -> 0
A60: 18 | B60: dqy 'ks"k vk;dj | N60: #- | O60: =O58-O59 -> 18916 | Y60: =ROUND(IF(O47<250001,0,IF(O47>500000,12500,((O47-250000)*0.05))),IF(O47<300001,0,IF(O47>500000,10000,((O47-300000)*0.05)))) -> 12500
A61: 19 | B61: vk;dj dVkSrh dk fooj.k | E61: flrEcj 2019 rd :i;s | H61: vDVq- 2019 ls fnl- 2019 rd :i;s | J61: tuojh 2020 esa dqy :i;s | K61: Qjojh 2020 essa dqy :i;s | M61: ,fj;j ls Vh-Mh-,l- o vU; - | O61: dqy;ksx dkWye 19
E62: =SUM('GA 55'!U7:U13) -> 5700 | H62: =SUM('GA 55'!U14:U16) -> 7400 | J62: ='GA 55'!U17 -> 1400 | K62: ='GA 55'!U18 -> 100 | M62: =SUM('GA 55'!U21:U26)+'Extra deduc'!J20 -> 0 | O62: ='Extra deduc'!J20+'GA 55'!U27 -> 14600
A63: =IF(O60>O62,"Income Tax Payable",IF(O60<O62,"Income Tax Refundable","Income Tax Payble/Refundable")) -> Income Tax Payable | N63: #- | O63: =IF(O60>O62,O60-O62,O62-O60) -> 4316
L65: gLrk{kj dkfeZd
C74: This Micro software Developed by: HEERALAL JAT
C75: Senior Teacher
C76: Government Senior Secondary School INDERWARA , PALI
C77: Dist- Pali
C78: heeralaljatchandawal@gmail.com
C79: V./P. - Chandawal Nagar, Teh.- sojat city, Dist.- Pali (Raj) 306306
